bitfinex-derivatives/quotes_BNBF0:USTF0_20250810
["timestamp","ask_amount","ask_price","bid_price","bid_amount"]
[1754791758882,0.5,811.79,810.06,2.7456543]
[1754791759078,0.21471806,811.31,810.06,2.7456543]
[1754791759282,0.21471806,811.31,810.1,2.7456543]
[1754791761882,0.21471806,811.31,810.0,2.7456543]
[1754791762881,0.21471806,811.31,809.96,2.7456543]
[1754791763584,0.21471806,811.31,809.66,2.7456543]
[1754791764985,0.21471806,811.31,809.67,2.7456543]
[1754791765588,0.21471806,811.31,809.89,2.7456543]
[1754791766182,0.21471806,811.31,809.9,2.7456543]
[1754791766688,0.21471806,811.31,809.89,2.7456543]
[1754791767591,0.21471806,811.31,809.9,2.7456543]
[1754791768685,0.21471806,811.31,809.93,2.7456543]
[1754791770291,0.21471806,811.31,809.94,2.7456543]
[1754791770791,0.21471806,811.31,809.93,2.7456543]
[1754791771192,0.21471806,811.31,809.94,2.7456543]
[1754791771689,0.21471806,811.31,809.96,2.7456543]
[1754791772893,0.21471806,811.31,810.0,2.7456543]
[1754791773393,0.21471806,811.31,810.31,2.7456543]
[1754791773791,0.21471806,811.31,810.08,2.7456543]
[1754791774395,0.21471806,811.31,810.05,2.7456543]
[1754791774894,0.21471806,811.31,810.09,2.7456543]
[1754791775496,0.21471806,811.31,810.08,2.7456543]
[1754791775995,0.21471806,811.31,810.09,2.7456543]
[1754791776499,0.21471806,811.31,810.15,2.7456543]
[1754791778497,0.21471806,811.31,810.12,2.7456543]
[1754791778997,0.21471806,811.31,810.1,2.7456543]
[1754791780101,0.21471806,811.31,810.11,2.7456543]
[1754791783701,0.21471806,811.31,810.26,2.7456543]
[1754791784196,0.21471806,811.31,810.32,2.7456543]
[1754791784701,0.21471806,811.31,810.39,2.7456543]
[1754791785201,0.21471806,811.31,810.38,2.7456543]
[1754791785800,0.21471806,811.31,810.35,2.7456543]
[1754791786801,0.21471806,811.31,810.48,2.7456543]
[1754791788398,0.21471806,811.31,809.92,2.7456543]
[1754791788896,0.21471806,811.31,809.93,2.7456543]
[1754791791605,0.21471806,811.31,809.92,2.7456543]
[1754791793603,0.21471806,811.31,809.91,2.7456543]
[1754791794107,0.21471806,811.31,809.86,2.7456543]
[1754791794505,0.21471806,811.31,809.85,2.7456543]
[1754791795608,0.21471806,811.31,809.84,2.7456543]
[1754791796609,0.21471806,811.31,809.83,2.7456543]
[1754791797608,0.21471806,811.31,809.75,1.763]
[1754791797609,0.21471806,811.31,810.2,2.7456543]
[1754791798712,0.21471806,811.31,810.11,2.7456543]
[1754791799212,0.21471806,811.31,810.14,2.7456543]
[1754791800917,0.21471806,811.31,810.21,2.7456543]
[1754791801315,0.21471806,811.31,809.82,3.85178554]
[1754791801316,0.21471806,811.31,810.24,2.7456543]
[1754791801811,0.21471806,811.31,810.23,2.7456543]
[1754791802917,0.21471806,811.31,809.97,2.7456543]
[1754791803518,0.21471806,811.31,809.94,2.7456543]
[1754791804420,0.21471806,811.31,809.93,2.7456543]
[1754791806015,0.21471806,811.31,809.75,1.763]
[1754791811725,0.21471806,811.31,809.75,4.5086543]
[1754791812424,0.21471806,811.31,809.78,2.7456543]
[1754791814922,0.21471806,811.31,809.75,1.763]
[1754791815426,0.21471806,811.31,809.77,2.7456543]
[1754791815927,0.21471806,811.31,809.99,2.7456543]
[1754791816423,0.21471806,811.31,809.75,1.763]
[1754791824436,0.71471806,811.31,809.75,1.763]
[1754791824738,0.5,811.28,810.01,2.7456543]
[1754791825434,0.5,811.28,810.13,2.7456543]
[1754791825639,0.266,811.25,810.13,2.7456543]
[1754791825935,0.375,811.25,810.07,2.7456543]
[1754791826140,0.301,811.24,810.07,2.7456543]
[1754791826340,0.375,811.25,810.11,2.7456543]
[1754791827338,0.375,811.25,810.1,2.7456543]
[1754791828438,0.307,811.11,810.1,2.7456543]
[1754791828641,0.378,811.16,810.1,2.7456543]
[1754791828836,0.378,811.16,809.75,1.763]
[1754791829642,0.266,811.16,809.75,1.763]
[1754791830939,0.266,811.16,809.61,2.7456543]
[1754791831144,0.295,811.16,809.61,2.7456543]
[1754791831547,0.5,811.14,809.61,2.7456543]
[1754791831747,0.5,811.14,809.49,2.7456543]
[1754791831943,0.5,811.11,809.49,2.7456543]
[1754791832144,0.5,811.07,809.49,2.7456543]
[1754791832344,0.5,811.07,809.46,2.7456543]
[1754791832643,0.5,811.12,809.46,2.7456543]
[1754791833348,0.5,811.12,809.63,2.7456543]
[1754791834552,0.5,811.12,809.62,2.7456543]
[1754791834950,0.5,811.12,809.61,2.7456543]
[1754791835552,0.5,811.12,809.6,2.7456543]
[1754791836149,0.5,811.12,809.59,2.7456543]
[1754791837551,0.5,811.12,809.58,2.7456543]
[1754791837857,0.294,811.19,809.58,2.7456543]
[1754791838051,0.294,811.19,809.32,0.21481216]
[1754791838250,0.305,811.18,809.32,0.21481216]
[1754791838452,0.377,811.19,809.32,0.21481216]
[1754791838652,0.266,811.19,809.32,0.21481216]
[1754791839268,0.305,811.17,809.32,0.21481216]
[1754791839455,0.5,811.18,809.32,0.21481216]
[1754791842562,0.305,811.08,809.32,0.21481216]
[1754791842956,0.5,811.18,809.32,0.21481216]
[1754791844861,0.5,811.06,809.32,0.21481216]
[1754791845059,0.405,811.19,809.32,0.21481216]
[1754791845263,0.294,811.19,809.32,0.21481216]
[1754791846861,0.376,811.19,809.32,0.21481216]
[1754791847959,0.376,811.19,809.48,2.7456543]
[1754791848463,0.376,811.19,809.47,2.7456543]
[1754791848661,0.5,811.2,809.47,2.7456543]
[1754791849465,0.5,811.2,809.48,2.7456543]
[1754791849960,0.5,811.2,809.49,2.7456543]
[1754791850461,0.5,811.2,809.64,2.7456543]
[1754791850660,0.5,811.16,809.64,2.7456543]
[1754791851063,0.5,811.13,809.64,2.7456543]
[1754791851561,0.5,811.13,809.68,2.7456543]
[1754791851962,0.303,811.08,809.68,2.7456543]
[1754791852265,0.5,811.06,809.36,3.85178554]
[1754791852564,0.5,811.06,809.32,0.21481216]
[1754791852762,0.5,811.06,809.3,1.332]
[1754791856068,0.5,811.17,809.3,1.332]
[1754791856268,1.30095417,811.16,809.3,1.332]
[1754791856568,0.80095417,811.15,809.3,1.332]
[1754791858270,0.5,811.13,809.3,1.332]
[1754791858470,0.80095417,811.12,809.3,1.332]
[1754791861272,0.303,811.09,809.3,1.332]
[1754791861568,0.5,811.03,809.3,1.332]
[1754791863278,0.5,810.95,809.3,1.332]
[1754791864180,0.21471806,811.31,809.3,1.332]
[1754791864382,1.63289842,811.3,809.3,1.332]
[1754791864582,0.80105578,811.29,809.35,2.7456543]
[1754791865079,0.80105578,811.28,809.32,2.7456543]
[1754791865485,0.83184264,811.23,809.36,2.7456543]
[1754791865686,0.80105578,811.22,809.36,2.7456543]
[1754791865980,0.21471806,811.31,809.3,1.332]
[1754791865981,0.80105578,811.21,809.44,2.7456543]
[1754791866180,0.80105578,811.2,809.44,2.7456543]
[1754791866383,0.80105578,811.19,809.44,2.7456543]
[1754791866583,0.80105578,811.18,809.44,2.7456543]
[1754791866784,0.80105578,811.17,809.44,2.7456543]
[1754791866981,0.80105578,811.16,809.44,2.7456543]
[1754791867281,0.21471806,811.31,809.3,1.332]
[1754791867282,0.80105578,811.15,809.3,1.332]
[1754791867585,0.80105578,811.14,809.3,1.332]
[1754791867883,0.80105578,811.13,809.3,1.332]
[1754791868185,0.80105578,811.12,809.3,1.332]
[1754791868485,0.80105578,811.11,809.3,1.332]
[1754791868685,0.80105578,811.1,809.3,1.332]
[1754791868981,0.80105578,811.09,809.3,1.332]
[1754791869186,0.5,810.81,809.3,1.332]
[1754791869381,0.399,810.9,809.3,1.332]
[1754791869585,0.291,810.9,809.3,1.332]
[1754791869786,0.5,810.81,809.3,1.332]
[1754791870686,0.5,810.81,809.33,2.7456543]
[1754791870879,0.266,810.9,809.33,2.7456543]
[1754791871281,0.266,810.9,809.3,1.332]
[1754791871282,0.374,810.9,809.3,1.332]
[1754791871485,0.266,810.9,809.3,1.332]
[1754791872187,0.374,810.9,809.3,1.332]
[1754791872583,0.274,810.83,809.3,1.332]
[1754791873189,0.5,810.89,809.3,1.332]
[1754791873688,0.5,810.84,809.3,1.332]
[1754791873887,0.5,810.98,809.3,1.332]
[1754791875185,0.21471806,811.31,809.3,1.332]
[1754791875389,0.80122178,811.3,809.3,1.332]
[1754791875685,0.80122178,811.29,809.3,1.332]
[1754791875885,0.80122178,811.28,809.3,1.332]
[1754791876185,0.80122178,811.27,809.3,1.332]
[1754791876389,0.80122178,811.26,809.3,1.332]
[1754791876589,0.80122178,811.25,809.3,1.332]
[1754791876787,0.80122178,811.24,809.3,1.332]
[1754791876991,0.80122178,811.23,809.3,1.332]
[1754791877189,0.80122178,811.22,809.3,1.332]
[1754791877389,0.80122178,811.21,809.3,1.332]
[1754791877587,0.80122178,811.2,809.3,1.332]
[1754791877789,0.21471806,811.31,809.3,1.332]
[1754791877790,0.80122178,811.19,809.3,1.332]
[1754791878087,0.80122178,811.18,809.3,1.332]
[1754791878288,0.80122178,811.17,809.3,1.332]
[1754791878589,0.80122178,811.16,809.3,1.332]
[1754791878791,0.80122178,811.15,809.3,1.332]
[1754791878991,0.80122178,811.14,809.3,1.332]
[1754791879199,0.80122178,811.13,809.3,1.332]
[1754791879388,0.80122178,811.12,809.3,1.332]
[1754791879593,0.80122178,811.11,809.3,1.332]
[1754791879790,0.21471806,811.31,809.3,1.332]
[1754791880094,0.80163846,811.3,809.3,1.332]
[1754791880394,0.5,810.98,809.3,1.332]
[1754791881389,0.5,810.89,809.3,1.332]
[1754791883493,0.317,810.87,809.3,1.332]
[1754791884592,0.5,810.98,809.3,1.332]
[1754791886099,0.317,810.84,809.3,1.332]
[1754791887500,0.5,810.98,809.3,1.332]
[1754791887700,0.304,810.84,809.3,1.332]
[1754791887900,0.5,810.98,809.3,1.332]
[1754791888300,0.5,810.93,809.3,1.332]
[1754791889202,0.5,810.93,808.98,0.21493223]
[1754791891001,0.5,810.87,808.98,0.21493223]
[1754791891206,0.5,810.82,809.21,2.7456543]
[1754791892105,0.5,810.82,809.22,2.7456543]
[1754791892505,0.5,810.98,809.22,2.7456543]
[1754791892802,0.5,810.9,809.22,2.7456543]
[1754791893502,0.5,810.87,809.22,2.7456543]
[1754791893705,0.5,810.87,809.24,2.7456543]
[1754791894304,0.5,810.87,809.26,2.7456543]
[1754791894703,0.5,810.87,809.38,2.7456543]
[1754791895608,0.8029389,810.86,809.38,2.7456543]
[1754791895806,0.5,810.87,809.24,2.7456543]
[1754791896106,0.8029389,810.86,809.24,2.7456543]
[1754791896306,0.5,810.98,809.33,2.7456543]
[1754791896506,0.80294912,810.97,809.33,2.7456543]
[1754791896709,0.80294912,810.96,809.33,2.7456543]
[1754791896906,0.80294912,810.95,809.34,2.7456543]
[1754791897113,0.80294912,810.94,809.34,2.7456543]
[1754791897408,0.80294912,810.93,809.34,2.7456543]
[1754791897711,0.80294912,810.92,809.34,2.7456543]
[1754791897913,0.80294912,810.91,809.34,2.7456543]
[1754791898114,0.80294912,810.9,809.34,2.7456543]
[1754791898414,0.80294912,810.89,809.34,2.7456543]
[1754791898615,0.80294912,810.88,809.34,2.7456543]
[1754791898910,0.80294912,810.87,809.34,2.7456543]
[1754791899116,0.80294912,810.86,809.34,2.7456543]
[1754791899411,0.80294912,810.85,809.34,2.7456543]
[1754791899612,0.5,810.82,809.34,2.7456543]
[1754791900715,0.5,810.98,809.34,2.7456543]
[1754791900917,0.5,810.96,809.34,2.7456543]
[1754791901115,0.80311404,810.95,809.42,2.7456543]
[1754791901424,0.80311404,810.94,809.42,2.7456543]
[1754791901612,0.80311404,810.93,809.34,2.7456543]
[1754791901814,0.5,810.9,809.34,2.7456543]
[1754791902012,0.80311404,810.89,809.34,2.7456543]
[1754791904116,0.80311404,810.89,809.05,1.515]
[1754791904117,0.80311404,810.89,809.27,2.7456543]
[1754791904613,0.80311404,810.89,809.28,2.7456543]
[1754791905518,0.80311404,810.88,809.28,2.7456543]
[1754791905718,0.5,810.98,809.43,2.7456543]
[1754791906419,0.301,810.9,809.45,2.7456543]
[1754791906918,0.277,810.88,809.4,2.7456543]
[1754791907319,0.277,810.88,809.42,2.7456543]
[1754791907619,0.275,810.9,809.42,2.7456543]
[1754791909521,0.275,810.9,809.43,2.7456543]
[1754791910322,0.275,810.9,809.44,2.7456543]
[1754791910918,0.275,810.9,809.49,2.7456543]
[1754791911623,0.5,810.98,809.45,2.7456543]
[1754791911822,0.80404093,810.97,809.45,2.7456543]
[1754791912022,0.80404093,810.96,809.45,2.7456543]
[1754791912222,0.80404093,810.95,809.45,2.7456543]
[1754791912421,0.80404093,810.94,809.45,2.7456543]
[1754791912618,0.5,810.98,809.45,2.7456543]
[1754791912818,0.80407899,810.97,809.45,2.7456543]
[1754791913018,0.80407899,810.96,809.47,2.7456543]
[1754791913222,0.80407899,810.95,809.47,2.7456543]
[1754791913422,0.5,810.98,809.47,2.7456543]
[1754791913720,0.5,810.98,809.48,2.7456543]
[1754791914222,0.5,810.98,809.05,1.515]
[1754791914223,0.5,810.98,809.54,2.7456543]
[1754791914624,0.5,810.98,809.57,2.7456543]
[1754791915320,0.80428923,810.97,809.57,2.7456543]
[1754791915524,0.80428923,810.96,809.54,2.7456543]
[1754791915822,0.80428923,810.95,809.54,2.7456543]
[1754791916125,0.5,810.98,809.55,2.7456543]
[1754791916419,0.8043879,810.97,809.55,2.7456543]
[1754791916724,0.8043879,810.96,809.57,2.7456543]
[1754791917024,0.8043879,810.95,809.57,2.7456543]
[1754791917219,0.5,811.01,809.34,2.7456543]
[1754791917423,0.80444196,811.0,809.34,2.7456543]
[1754791917622,0.5,811.01,809.36,2.7456543]
[1754791917824,0.80442634,811.0,809.36,2.7456543]
[1754791918119,0.5,811.07,809.36,2.7456543]
[1754791918324,0.80451795,811.06,809.36,2.7456543]
[1754791918519,0.80451795,811.05,809.36,2.7456543]
[1754791918724,0.80451795,811.04,809.33,2.7456543]
[1754791918920,0.5,811.11,809.33,2.7456543]
[1754791919125,1.17743592,811.1,809.33,2.7456543]
[1754791919321,0.397,811.1,809.63,2.7456543]
[1754791919520,0.29,811.1,809.63,2.7456543]
[1754791920124,0.80441348,811.09,809.63,2.7456543]
[1754791920325,0.29,811.1,809.63,2.7456543]
[1754791920526,0.80441348,811.09,809.63,2.7456543]
[1754791920728,0.29,811.1,809.63,2.7456543]
[1754791920927,0.80441324,811.09,809.63,2.7456543]
[1754791921130,0.29,811.1,809.63,2.7456543]
[1754791921425,0.80437811,811.09,809.63,2.7456543]
[1754791921628,0.29,811.1,809.63,2.7456543]
[1754791921823,0.80437811,811.09,809.63,2.7456543]
[1754791922130,0.29,811.1,809.63,2.7456543]
[1754791922428,0.373,811.1,809.62,2.7456543]
[1754791922625,0.80431707,811.09,809.62,2.7456543]
[1754791922828,0.373,811.1,809.62,2.7456543]
[1754791923332,0.80424275,811.09,809.62,2.7456543]
[1754791923532,0.48,811.1,809.61,2.7456543]
[1754791923827,0.297,811.02,809.61,2.7456543]
[1754791924131,0.21471806,811.31,809.61,2.7456543]
[1754791924427,0.397,811.1,809.61,2.7456543]
[1754791925030,0.397,811.1,809.65,2.7456543]
[1754791925729,0.8040959,811.09,809.65,2.7456543]
[1754791925929,0.297,811.1,809.65,2.7456543]
[1754791925930,0.21471806,811.31,809.65,2.7456543]
[1754791926134,0.5,811.11,809.59,2.7456543]
[1754791926433,0.8040959,811.1,809.59,2.7456543]
[1754791926729,0.8040959,811.09,809.58,2.7456543]
[1754791926934,0.5,811.11,809.58,2.7456543]
[1754791927230,0.80400971,811.1,809.58,2.7456543]
[1754791927433,0.80400971,811.09,809.58,2.7456543]
[1754791927634,0.5,811.11,809.58,2.7456543]
[1754791927835,0.80393264,811.1,809.58,2.7456543]
[1754791928134,0.80392072,811.09,809.56,2.7456543]
[1754791928330,0.5,811.11,809.56,2.7456543]
[1754791928531,0.80386394,811.1,809.56,2.7456543]
[1754791928834,0.5,811.11,809.55,2.7456543]
[1754791929031,0.80386394,811.1,809.55,2.7456543]
[1754791929235,0.5,811.11,809.63,2.7456543]
[1754791929433,0.80385211,811.1,809.63,2.7456543]
[1754791929633,0.5,811.11,809.63,2.7456543]
[1754791929838,0.80380135,811.1,809.64,2.7456543]
[1754791930038,0.5,811.11,809.64,2.7456543]
[1754791930334,0.80378964,811.1,809.65,2.7456543]
[1754791930635,0.5,811.11,809.65,2.7456543]
[1754791930838,0.299,810.99,809.65,2.7456543]
[1754791931034,0.5,811.11,809.65,2.7456543]
[1754791931939,0.5,811.11,809.66,2.7456543]
[1754791932638,0.5,811.11,809.67,2.7456543]
[1754791933439,0.5,811.11,809.66,2.7456543]
[1754791934037,0.5,811.11,809.67,2.7456543]
[1754791934540,0.5,811.11,809.66,2.7456543]
[1754791935542,0.5,811.11,809.67,2.7456543]
[1754791936143,0.5,811.11,809.66,2.7456543]
[1754791937138,0.5,811.11,809.65,2.7456543]
[1754791938243,0.5,811.11,809.68,2.7456543]
[1754791938739,0.321,811.01,809.68,2.7456543]
[1754791939041,0.297,811.1,809.68,2.7456543]
[1754791939739,0.297,811.1,809.6,2.7456543]
[1754791940244,0.297,811.1,809.61,2.7456543]
[1754791940640,0.273,811.08,809.61,2.7456543]
[1754791941449,0.273,811.08,808.98,0.21493223]
[1754791941450,0.273,811.08,809.53,2.7456543]
[1754791942550,0.5,811.11,809.53,2.7456543]
[1754791945161,0.5,811.11,809.54,2.7456543]
[1754791945754,0.80319052,811.1,809.54,2.7456543]
[1754791945956,0.80319052,811.09,809.54,2.7456543]
[1754791946157,0.80319052,811.08,809.36,2.7456543]
[1754791946356,0.80319052,811.07,809.36,2.7456543]
[1754791946557,0.80319052,811.06,809.36,2.7456543]
[1754791946856,0.80319052,811.05,809.36,2.7456543]
[1754791947057,0.80319052,811.04,809.36,2.7456543]
[1754791947259,0.80319052,811.03,809.36,2.7456543]
[1754791947454,0.80319052,811.02,809.36,2.7456543]
[1754791947763,0.80319052,811.01,809.36,2.7456543]
[1754791947954,0.80319052,811.0,809.36,2.7456543]
[1754791948155,0.80319052,810.99,809.36,2.7456543]
[1754791948356,0.80319052,810.98,809.36,2.7456543]
[1754791948554,0.80319052,810.97,809.36,2.7456543]
[1754791948754,0.80319052,810.96,809.36,2.7456543]
[1754791948956,0.5,811.11,809.36,2.7456543]
[1754791949157,0.305,811.0,809.36,2.7456543]
[1754791949358,0.80317685,810.99,809.36,2.7456543]
[1754791949557,0.80317685,810.98,809.36,2.7456543]
[1754791949757,0.80317685,810.97,809.42,2.7456543]
[1754791949957,0.80317685,810.96,809.42,2.7456543]
[1754791950168,0.5,811.03,809.42,2.7456543]
[1754791950357,0.80318199,811.02,809.42,2.7456543]
[1754791950558,0.80318199,811.01,809.42,2.7456543]
[1754791950757,0.80318199,811.0,809.4,2.7456543]
[1754791950961,0.80318199,810.99,809.4,2.7456543]
[1754791951162,0.80318199,810.98,809.46,2.7456543]
[1754791951462,0.80318199,810.97,809.46,2.7456543]
[1754791951761,0.80318199,810.96,809.45,2.7456543]
[1754791951962,0.305,811.03,809.45,2.7456543]
[1754791952161,0.80319635,811.02,809.45,2.7456543]
[1754791952359,0.80319635,811.01,809.45,2.7456543]
[1754791952559,0.80319635,811.0,809.45,2.7456543]
[1754791952762,0.5,811.11,809.45,2.7456543]
[1754791952763,0.80319635,810.99,809.45,2.7456543]
[1754791952963,0.80319635,810.98,809.45,2.7456543]
[1754791953162,0.80319635,810.97,809.45,2.7456543]
[1754791953360,0.80319635,810.96,809.42,2.7456543]
[1754791953566,0.80319635,810.95,809.42,2.7456543]
[1754791953861,0.80319635,810.94,809.42,2.7456543]
[1754791954064,0.80319635,810.93,809.42,2.7456543]
[1754791954361,0.80319635,810.92,809.42,2.7456543]
[1754791954566,0.80319635,810.91,809.42,2.7456543]
[1754791954767,0.5,811.03,809.42,2.7456543]
[1754791954962,0.80330251,811.02,809.42,2.7456543]
[1754791955160,0.80330251,811.01,809.42,2.7456543]
[1754791955361,0.5,810.97,809.36,2.7456543]
[1754791955860,0.5,810.97,809.65,2.7456543]
[1754791957066,0.5,810.97,809.62,2.7456543]
[1754791957564,0.5,810.91,809.68,2.7456543]
[1754791959070,0.5,810.91,809.67,2.7456543]
[1754791959271,0.21491697,810.61,809.67,2.7456543]
[1754791959570,0.21491697,810.61,809.73,2.7456543]
[1754791960571,0.21491697,810.61,809.74,2.7456543]
[1754791961071,0.21491697,810.61,809.75,2.7456543]
[1754791962069,0.21491697,810.61,809.74,2.7456543]
[1754791965776,0.21491697,810.61,809.7,2.7456543]
[1754791966377,0.21491697,810.61,809.71,2.7456543]
[1754791966777,0.21491697,810.61,809.73,2.7456543]
[1754791967384,0.21491697,810.61,809.77,2.7456543]
[1754791970376,0.21491697,810.61,809.76,2.7456543]
[1754791970982,0.5,810.52,809.3,1.296]
[1754791971376,0.21491697,810.61,809.3,1.296]
[1754791971677,0.5,810.5,809.3,1.296]
[1754791972085,0.332,810.51,809.3,1.296]
[1754791972283,0.278,810.45,809.3,1.296]
[1754791972684,0.278,810.38,809.3,1.296]
[1754791972881,0.278,810.34,809.3,1.296]
[1754791973084,0.307,810.28,809.3,1.296]
[1754791973585,0.278,810.26,809.3,1.296]
[1754791973784,0.319,810.35,809.3,1.296]
[1754791973984,0.348,810.22,809.3,1.296]
[1754791974182,0.319,810.25,808.85,2.7456543]
[1754791974382,0.419,810.21,808.85,2.7456543]
[1754791974581,0.36,810.13,808.73,2.7456543]
[1754791974882,0.5,810.04,808.73,2.7456543]
[1754791975082,0.5,810.04,808.42,2.7456543]
[1754791975282,0.319,810.0,808.42,2.7456543]
[1754791975485,0.5,810.04,808.37,0.21506041]
[1754791975685,0.278,810.13,808.37,0.21506041]
[1754791975882,0.278,810.02,808.37,0.21506041]
[1754791976089,0.5,810.12,808.37,0.21506041]
[1754791976397,0.5,809.9,808.31,2.7456543]
[1754791976588,0.5,809.9,808.22,0.21517809]
[1754791977689,0.5,809.96,808.22,0.21517809]
[1754791978284,0.5,810.06,808.22,0.21517809]
[1754791979589,0.303,810.03,808.22,0.21517809]
[1754791979800,0.33,810.03,808.22,0.21517809]
[1754791979990,0.5,810.06,808.22,0.21517809]
[1754791980191,0.303,809.93,808.15,1.143]
[1754791980392,0.303,809.94,808.15,1.143]
[1754791980600,0.21520271,809.61,808.18,0.21520271]
[1754791982586,0.21520271,809.61,808.15,1.143]
[1754792011298,0.21520271,809.61,807.93,0.21525063]
[1754792014805,0.21520271,809.61,807.94,1.185]
[1754792019815,0.21520271,809.61,807.96,2.7456543]
[1754792020212,0.21520271,809.61,807.94,3.9306543]
[1754792020914,0.21520271,809.61,807.96,2.7456543]
[1754792021311,0.21520271,809.61,808.0,2.7456543]
[1754792022411,0.21520271,809.61,808.01,2.7456543]
[1754792022815,0.21520271,809.61,808.04,2.7456543]
[1754792023312,0.21520271,809.61,808.09,2.7456543]
[1754792024516,0.21520271,809.61,808.19,2.7456543]
[1754792025519,0.21520271,809.61,808.26,2.7456543]
[1754792026016,0.21520271,809.61,808.36,2.7456543]
[1754792026517,0.21520271,809.61,808.43,2.7456543]
[1754792027514,0.21520271,809.61,808.51,2.7456543]
[1754792028019,0.21520271,809.61,808.45,2.7456543]
[1754792028619,0.21520271,809.61,808.56,2.7456543]
[1754792029114,0.5,810.14,808.43,2.7456543]
[1754792029318,0.21514284,809.73,808.43,2.7456543]
[1754792029617,0.21514284,809.73,808.54,2.7456543]
[1754792030117,0.21514284,809.73,808.56,2.7456543]
[1754792030714,0.21514284,809.73,808.68,2.7456543]
[1754792031119,0.21514284,809.73,808.65,2.7456543]
[1754792031721,0.21514284,809.73,808.72,2.7456543]
[1754792032720,0.21514284,809.73,808.76,2.7456543]
[1754792033819,0.21514284,809.73,808.41,3.85178554]
[1754792033820,0.21514284,809.73,808.79,2.7456543]
[1754792035420,0.21514284,809.73,808.82,2.7456543]
[1754792035826,0.21514284,809.73,808.59,2.7456543]
[1754792037423,0.21514284,809.73,808.69,2.7456543]
[1754792038528,0.21514284,809.73,808.54,2.7456543]
[1754792038929,0.21514284,809.73,808.28,2.7456543]
[1754792041627,0.21514284,809.73,808.26,2.7456543]
[1754792042733,0.21514284,809.73,808.16,2.7456543]
[1754792043632,0.21514284,809.73,808.7,2.7456543]
[1754792045833,0.21514284,809.73,808.87,2.7456543]
[1754792046235,0.21514284,809.73,808.88,2.7456543]
[1754792047330,0.21514284,809.73,808.84,2.7456543]
[1754792047835,0.21514284,809.73,808.85,2.7456543]
[1754792048933,0.21514284,809.73,808.77,2.7456543]
[1754792050336,0.21514284,809.73,808.78,2.7456543]
[1754792052533,0.21514284,809.73,808.79,2.7456543]
[1754792053039,0.21514284,809.73,808.63,2.7456543]
[1754792053538,0.21514284,809.73,808.61,2.7456543]
[1754792054040,0.21514284,809.73,808.79,2.7456543]
[1754792055337,0.21514284,809.73,808.76,2.7456543]
[1754792055641,0.21514284,809.73,808.85,2.7456543]
[1754792057639,0.21514284,809.73,808.64,2.7456543]
[1754792058347,0.21514284,809.73,808.44,2.7456543]
[1754792058847,0.21514284,809.73,808.41,2.7456543]
[1754792059344,0.21514284,809.73,808.43,2.7456543]
[1754792060544,0.21514284,809.73,808.44,2.7456543]
[1754792061048,0.21514284,809.73,808.47,2.7456543]
[1754792061550,0.21514284,809.73,808.46,2.7456543]
[1754792061949,0.21514284,809.73,808.43,2.7456543]
[1754792062445,0.21514284,809.73,808.76,2.7456543]
[1754792062750,0.21514284,809.73,808.69,2.7456543]
[1754792063149,0.21514284,809.73,808.7,2.7456543]
[1754792063845,0.21514284,809.73,808.58,2.7456543]
[1754792064249,0.21514284,809.73,808.6,2.7456543]
[1754792064743,0.21514284,809.73,808.63,2.7456543]
[1754792065449,0.21514284,809.73,808.59,2.7456543]
[1754792065846,0.21514284,809.73,808.63,2.7456543]
[1754792067952,0.21514284,809.73,808.61,2.7456543]
[1754792070652,0.21514284,809.73,808.27,3.85178554]
[1754792070653,0.21514284,809.73,808.56,2.7456543]
[1754792071152,0.21514284,809.73,808.7,2.7456543]
[1754792071654,0.21514284,809.73,808.55,2.7456543]
[1754792072657,0.21514284,809.73,808.54,2.7456543]
[1754792073257,0.21514284,809.73,808.52,2.7456543]
[1754792074256,0.21514284,809.73,808.5,2.7456543]
[1754792075259,0.21514284,809.73,808.49,2.7456543]
[1754792075760,0.21514284,809.73,808.5,2.7456543]
[1754792076256,0.21514284,809.73,808.32,2.7456543]
[1754792077856,0.21514284,809.73,808.33,2.7456543]
[1754792079863,0.21514284,809.73,808.36,2.7456543]
[1754792080964,0.21514284,809.73,808.58,2.7456543]
[1754792081663,0.21514284,809.73,808.5,2.7456543]
[1754792082159,0.21514284,809.73,808.52,2.7456543]